bitfinex-derivatives/quotes_ETHF0:USTF0_20260316
["timestamp","ask_amount","ask_price","bid_price","bid_amount"]
[1773623351110,2.3446017,2169.7,2168.0,0.14807115]
[1773623351312,2.34285706,2169.5,2168.0,0.14807115]
[1773623351615,2.34285706,2169.5,2168.1,0.14408694]
[1773623351914,2.34285706,2169.5,2168.3,0.14408694]
[1773623353418,2.34285706,2169.5,2168.4,0.23055]
[1773623353621,2.34285706,2169.5,2168.5,0.17484092]
[1773623354811,2.34285706,2169.5,2168.5,0.16324397]
[1773623356325,2.34285706,2169.5,2168.4,0.23055]
[1773623356719,2.34285706,2169.5,2168.4,0.38877617]
[1773623358917,2.34285706,2169.5,2168.4,0.23055]
[1773623359524,2.34285706,2169.5,2168.3,0.1513237]
[1773623360018,2.31655707,2169.3,2167.9,0.3783217]
[1773623360215,2.31655707,2169.1,2167.9,0.3783217]
[1773623361523,2.3277945,2168.9,2167.6,0.14059471]
[1773623362127,2.3277945,2168.9,2167.7,0.23062]
[1773623363726,2.3277945,2168.9,2168.1,0.23057]
[1773623365325,2.30736145,2169.5,2168.1,0.23057]
[1773623365524,2.30736145,2169.3,2168.1,6.26857]
[1773623366626,2.30736145,2169.3,2168.1,15.88312476]
[1773623367426,2.30736145,2169.3,2168.5,0.23053]
[1773623368029,2.30709725,2169.9,2168.5,0.23053]
[1773623368325,0.00583614,2170.0,2168.5,0.23053]
[1773623368326,2.30709725,2169.7,2168.5,0.23053]
[1773623368531,2.30709725,2169.7,2168.9,0.23048]
[1773623368725,2.1684206,2169.9,2169.0,2.24375444]
[1773623369627,2.1684206,2169.9,2169.2,2.24865432]
[1773623369828,2.1684206,2169.9,2169.2,2.25437528]
[1773623371328,0.00583614,2170.0,2169.3,0.23045]
[1773623371528,0.00583614,2170.0,2169.4,2.24621394]
[1773623371728,2.17425674,2170.0,2169.4,2.24621394]
[1773623372226,0.00583614,2170.0,2169.4,2.24621394]
[1773623372428,0.00583614,2170.0,2169.5,2.24692153]
[1773623374032,2.17425674,2170.0,2169.5,2.24692153]
[1773623374228,2.1684206,2170.2,2169.7,2.24570428]
[1773623374429,3.84074151,2170.8,2169.7,2.24570428]
[1773623374430,2.1684206,2170.9,2169.7,2.24570428]
[1773623374733,2.1684206,2170.7,2169.7,2.24570428]
[1773623375233,2.17341516,2170.7,2169.7,2.24570428]
[1773623375434,2.17341516,2170.7,2169.9,2.30910059]
[1773623375635,2.17341516,2170.7,2170.1,2.30910059]
[1773623376336,2.17341516,2170.7,2170.2,2.30910059]
[1773623376536,0.00499456,2170.7,2170.2,2.30910059]
[1773623377032,3.84074151,2171.8,2170.2,2.30910059]
[1773623377238,2.1684206,2171.5,2170.2,2.30910059]
[1773623377929,2.17314842,2171.5,2170.2,2.30910059]
[1773623378833,2.17314842,2171.5,2170.4,2.30910059]
[1773623382039,2.17314842,2171.5,2170.6,2.30910059]
[1773623382840,2.17314842,2171.5,2170.0,2.30910059]
[1773623383041,2.17314842,2171.5,2170.2,2.30910059]
[1773623390449,2.17314842,2171.5,2169.9,2.53948059]
[1773623390450,2.1684206,2171.3,2169.9,2.53948059]
[1773623390643,2.1684206,2171.2,2169.9,2.53948059]
[1773623391650,2.1684206,2171.1,2169.9,2.53948059]
[1773623392444,2.1684206,2171.1,2169.5,2.25671566]
[1773623392754,2.1684206,2171.1,2169.6,2.25671566]
[1773623393648,2.1684206,2171.1,2169.8,2.21442086]
[1773623397149,2.24665797,2170.9,2169.8,2.21442086]
[1773623397948,2.24665797,2170.9,2169.5,2.21442086]
[1773623398645,2.24665797,2170.9,2169.7,2.21442086]
[1773623400249,2.24665797,2170.7,2169.7,2.21442086]
[1773623400850,2.24665797,2170.7,2169.9,2.21442086]
[1773623401052,2.24665797,2171.2,2170.3,2.21442086]
[1773623401356,2.24665797,2171.4,2170.7,2.21442086]
[1773623401759,2.24665797,2171.4,2170.2,2.21442086]
[1773623401954,2.24665797,2171.4,2170.4,2.21442086]
[1773623402152,2.24665797,2171.4,2170.6,2.21442086]
[1773623405657,2.24665797,2171.4,2170.3,2.21442086]
[1773623407155,0.00472782,2171.5,2170.5,2.21442086]
[1773623407457,2.25138579,2171.5,2170.5,2.21442086]
[1773623408467,2.25138579,2171.5,2170.7,2.21442086]
[1773623408654,2.25138579,2171.5,2170.8,0.23029]
[1773623408859,2.24665797,2172.1,2170.9,2.21442086]
[1773623409056,2.24665797,2172.1,2171.3,2.21442086]
[1773623409862,2.25217465,2172.1,2171.3,2.21442086]
[1773623410061,0.00551668,2172.1,2171.5,2.21442086]
[1773623411562,2.25217465,2172.1,2171.5,2.21442086]
[1773623413158,3.84074151,2173.0,2171.7,2.21442086]
[1773623413159,2.24665797,2173.0,2171.7,2.21442086]
[1773623413359,2.24665797,2173.2,2172.1,2.21442086]
[1773623413660,2.24665797,2173.2,2172.3,2.21442086]
[1773623414055,2.25255219,2173.2,2172.3,2.21442086]
[1773623414255,2.25255219,2173.2,2172.5,2.21442086]
[1773623414459,2.25255219,2173.2,2172.5,2.21804221]
[1773623415660,2.25255219,2173.2,2172.5,0.00362135]
[1773623415964,2.25255219,2173.2,2172.1,2.21442086]
[1773623416863,2.25255219,2173.2,2172.1,2.2201219]
[1773623417064,2.25255219,2173.2,2172.2,2.21442086]
[1773623420467,2.25255219,2173.2,2172.1,0.00570104]
[1773623421670,2.25255219,2173.2,2172.1,2.2201219]
[1773623424463,2.25255219,2173.2,2172.1,0.00570104]
[1773623427179,2.25255219,2173.2,2172.1,2.24668542]
[1773623428474,2.25255219,2173.2,2172.1,0.00570104]
[1773623431876,5.51736302,2173.1,2171.8,2.24098438]
[1773623432071,2.18859041,2173.0,2171.9,2.24098438]
[1773623432681,2.18859041,2172.8,2171.9,2.24098438]
[1773623432881,2.18859041,2172.8,2171.9,2.24502233]
[1773623434783,2.18859041,2172.8,2171.9,0.00403795]
[1773623435279,2.18859041,2172.6,2171.6,2.24098438]
[1773623436280,2.18859041,2172.6,2171.6,2.24421107]
[1773623436479,2.18859041,2172.6,2171.6,2.47441107]
[1773623440682,2.18859041,2172.6,2171.7,2.24098438]
[1773623442087,2.18859041,2172.8,2171.9,2.24098438]
[1773623442688,2.18859041,2172.6,2171.7,2.24098438]
[1773623443989,2.18859041,2172.4,2171.7,2.24098438]
[1773623445790,2.18859041,2172.6,2171.7,2.24098438]
[1773623445997,2.18859041,2172.6,2171.7,2.47117438]
[1773623446401,2.18859041,2172.9,2171.9,2.24098438]
[1773623446697,2.18859041,2172.7,2171.9,2.24098438]
[1773623448295,2.18859041,2172.5,2171.8,2.24098438]
[1773623451097,2.18859041,2172.5,2171.6,2.24421107]
[1773623453898,2.33230737,2172.3,2171.2,2.21011197]
[1773623454095,2.33230737,2172.3,2171.0,7.16412195]
[1773623454096,2.33230737,2171.9,2171.0,2.21011197]
[1773623454292,2.33230737,2171.7,2170.5,2.21011197]
[1773623454496,2.33230737,2171.5,2170.5,2.21011197]
[1773623454696,3.84074151,2171.7,2170.5,2.21011197]
[1773623454697,2.33230737,2171.3,2170.5,2.21011197]
[1773623454895,2.33722941,2171.3,2170.5,2.21428784]
[1773623455299,2.7051481,2171.3,2170.5,2.21428784]
[1773623456201,2.33722941,2171.3,2170.5,2.21428784]
[1773623459805,2.33722941,2171.3,2170.3,2.21011197]
[1773623460803,2.33722941,2171.3,2170.3,2.21590156]
[1773623462906,2.33230737,2171.7,2170.5,2.21011197]
[1773623464010,2.33615902,2171.7,2170.5,2.21011197]
[1773623464806,2.33615902,2171.7,2170.3,2.21590156]
[1773623465006,2.33230737,2171.5,2170.3,2.21590156]
[1773623465508,2.33230737,2171.3,2170.3,2.21590156]
[1773623471012,2.33230737,2171.6,2170.5,2.21011197]
[1773623484421,2.33040045,2171.4,2170.5,2.21011197]
[1773623487426,2.33040045,2171.4,2170.3,2.13086268]
[1773623487631,2.33040045,2171.2,2170.3,2.13086268]
[1773623487930,2.33040045,2171.0,2170.1,2.12507309]
[1773623488921,2.33040045,2171.0,2170.1,2.12981748]
[1773623492033,2.33040045,2170.8,2170.1,2.12981748]
[1773623492425,2.33040045,2170.8,2169.9,2.12507309]
[1773623493533,2.33040045,2170.8,2169.9,2.13095853]
[1773623496532,2.33040045,2170.6,2169.4,2.12507309]
[1773623497034,2.33040045,2170.4,2169.4,2.12507309]
[1773623497435,2.33040045,2170.4,2169.4,2.1302139]
[1773623500932,2.33040045,2170.9,2169.6,2.12507309]
[1773623501132,2.33040045,2170.7,2169.6,2.12507309]
[1773623501534,2.33040045,2170.7,2169.8,2.12507309]
[1773623501737,2.33040045,2171.0,2169.8,2.12507309]
[1773623503032,2.33040045,2171.0,2170.0,2.12507309]
[1773623514249,2.09080311,2170.8,2170.0,2.12507309]
[1773623514950,2.09080311,2170.8,2170.1,2.24013405]
[1773623515150,2.09080311,2171.1,2170.2,2.24013405]
[1773623515351,7.71438496,2171.0,2170.2,2.24013405]
[1773623515551,2.09080311,2171.0,2170.2,2.24013405]
[1773623522551,3.85972711,2171.2,2170.2,2.24013405]
[1773623522758,2.09080311,2171.3,2170.4,2.24013405]
[1773623523757,3.85972711,2171.6,2170.6,2.24013405]
[1773623523758,2.09080311,2171.6,2170.6,2.24013405]
[1773623523957,7.71546518,2171.5,2170.6,2.24013405]
[1773623524159,2.09080311,2171.5,2170.6,2.24013405]
[1773623524657,2.09080311,2171.5,2170.6,8.27713405]
[1773623524861,2.09080311,2171.5,2170.7,2.24013405]
[1773623527058,2.09080311,2171.5,2170.1,2.24013405]
[1773623527358,2.71473661,2171.6,2170.1,2.24013405]
[1773623527359,2.09080311,2171.3,2170.1,2.24013405]
[1773623527559,2.09080311,2171.1,2170.1,2.24013405]
[1773623530769,2.09080311,2171.1,2170.3,2.24013405]
[1773623532058,2.09080311,2171.4,2170.5,2.24013405]
[1773623534569,2.09080311,2171.2,2170.5,2.24013405]
[1773623538872,2.09080311,2171.2,2170.3,2.24013405]
[1773623543374,2.14248344,2171.0,2170.3,2.24013405]
[1773623554794,2.14248344,2170.7,2170.0,2.03694796]
[1773623555691,2.14248344,2171.0,2170.0,2.03694796]
[1773623555886,2.14248344,2170.8,2170.0,2.03694796]
[1773623557389,2.14248344,2170.6,2170.0,2.03694796]
[1773623559695,2.14248344,2170.9,2170.0,2.03694796]
[1773623559895,2.14248344,2170.7,2170.0,2.03694796]
[1773623561000,2.14248344,2171.0,2170.0,2.03694796]
[1773623561697,5.78054663,2171.4,2169.7,6.037]
[1773623561698,2.14248344,2171.1,2170.2,2.03456063]
[1773623562188,2.14248344,2171.1,2170.1,0.23036]
[1773623562189,2.14248344,2171.4,2170.4,2.02676887]
[1773623562394,7.77365849,2171.3,2170.5,2.02676887]
[1773623562589,3.85972711,2171.6,2170.5,2.02676887]
[1773623562790,2.14248344,2171.5,2170.5,2.02676887]
[1773623562991,2.14248344,2171.3,2170.5,2.02676887]
[1773623572495,2.20934881,2171.5,2170.5,2.02676887]
[1773623577610,2.20934881,2171.5,2170.6,2.00187818]
[1773623579013,2.20934881,2171.5,2170.7,1.99856763]
[1773623581322,0.00385165,2171.7,2170.2,1.99517301]
[1773623581323,2.1776078,2171.1,2170.2,1.99517301]
[1773623581822,2.1776078,2170.8,2169.9,1.9946602]
[1773623582016,5.62337408,2170.7,2169.9,1.9946602]
[1773623582215,2.1776078,2170.6,2169.9,1.9946602]
[1773623584121,2.1776078,2170.5,2169.7,2.01608753]
[1773623584417,2.1776078,2170.2,2169.0,6.036]
[1773623584718,2.1776078,2170.2,2169.1,0.00107042]
[1773623585621,2.1776078,2170.2,2169.2,0.00895106]
[1773623586117,2.2258177,2170.0,2169.1,0.00323945]
[1773623586317,2.22938244,2170.0,2169.1,0.00323945]
[1773623586517,2.22938244,2170.0,2168.7,0.01760912]
[1773623586820,2.22041214,2169.8,2168.7,0.01760912]
[1773623587517,2.22041214,2169.8,2168.7,0.00386481]
[1773623587921,2.21924573,2169.6,2168.3,0.0252814]
[1773623588121,2.59521037,2169.6,2168.3,0.0252814]
[1773623588420,12.39521037,2169.6,2168.3,0.0252814]
[1773623588615,2.20560658,2169.5,2168.3,0.0252814]
[1773623588821,2.20560658,2169.3,2167.8,0.05359036]
[1773623589022,2.20560658,2169.3,2167.8,0.05825416]
[1773623589324,2.20555044,2169.0,2167.8,0.05825416]
[1773623592120,2.20555044,2169.0,2167.8,0.0046638]
[1773623592822,2.37058627,2168.9,2167.2,6.038]
[1773623593019,2.37058627,2168.9,2167.1,6.038]
[1773623593221,2.37058627,2168.9,2166.7,0.23072]
[1773623593429,2.44879904,2168.7,2166.8,6.039]
[1773623593922,2.44879904,2168.7,2166.8,6.04418847]
[1773623594118,2.44879904,2168.5,2166.9,6.039]
[1773623594323,2.44879904,2168.5,2166.8,0.00518847]
[1773623594918,9.8,2168.4,2166.8,0.00518847]
[1773623595117,2.44879905,2168.3,2166.8,0.00518847]
[1773623596325,2.44879905,2168.3,2166.9,6.04]
[1773623596526,2.44879905,2168.3,2167.0,0.23069]
[1773623596922,0.00579968,2168.4,2167.0,0.23069]
[1773623597128,2.48159813,2168.7,2167.5,0.23063]
[1773623597528,2.48159813,2168.7,2167.6,6.04]
[1773623598323,2.48609139,2168.7,2167.6,6.04]
[1773623598725,2.48609139,2168.7,2167.7,0.23062]
[1773623598927,2.48609139,2168.7,2167.7,6.27062]
[1773623600421,2.48609139,2168.7,2167.1,0.23068]
[1773623600626,2.48609139,2168.7,2167.3,0.23066]
[1773623602231,2.48609139,2168.7,2167.3,6.27066]
[1773623604532,2.48609139,2168.7,2167.8,0.23061]
[1773623606529,0.00449326,2168.7,2167.8,0.23061]
[1773623606924,2.5446538,2168.7,2167.8,0.23061]
[1773623607934,2.5446538,2168.7,2167.9,6.039]
[1773623608231,2.1140611,2168.9,2168.0,1.91791958]
[1773623608833,2.1140611,2168.9,2168.1,1.909349]
[1773623609338,2.11917411,2168.9,2168.1,1.909349]
[1773623610728,2.11917411,2168.9,2168.0,1.89545768]
[1773623611632,2.11917411,2168.9,2167.8,1.89881839]
[1773623613840,2.11917411,2168.9,2167.6,7.93430135]
[1773623614339,2.11917411,2168.9,2167.7,1.88942912]
[1773623614940,2.11917411,2168.9,2167.6,6.039]
[1773623615143,2.11917411,2168.9,2167.6,1.8904491]
[1773623615439,2.11917411,2168.9,2167.7,1.75018268]
[1773623617142,5.61786695,2168.8,2167.7,1.75018268]
[1773623617345,2.1140611,2168.7,2167.7,1.75018268]
[1773623619746,2.1140611,2168.7,2167.9,1.77508362]
[1773623619945,2.11917411,2168.9,2167.9,1.77508362]
[1773623620142,2.11917411,2168.9,2168.1,1.77508362]
[1773623620448,2.1140611,2169.1,2168.3,1.77474352]
[1773623620748,2.1140611,2169.1,2168.4,1.77575286]
[1773623621444,2.11752699,2169.1,2168.4,1.78146942]
[1773623622247,2.11752699,2169.1,2168.4,7.81946942]
[1773623622450,2.11752699,2169.1,2168.4,0.00571656]
[1773623625350,2.11752699,2169.1,2167.9,2.02184982]
[1773623625548,2.1140611,2168.9,2167.3,2.02189982]
[1773623625853,2.1140611,2168.5,2167.2,7.83017821]
[1773623626042,2.1140611,2168.3,2167.2,7.83017821]
[1773623626448,2.1140611,2168.3,2167.3,1.79638955]
[1773623629051,2.1140611,2168.3,2167.2,0.23501976]
[1773623629252,2.1140611,2168.1,2167.2,0.00435976]
[1773623629748,2.1140611,2167.9,2167.2,0.00435976]
[1773623631458,2.1140611,2167.9,2166.7,1.83571631]
[1773623632255,2.1140611,2167.9,2166.7,1.83930777]
[1773623632652,2.07528116,2167.7,2166.7,0.00359146]
[1773623632853,2.07528116,2167.5,2166.7,0.00359146]
[1773623633054,2.07897921,2167.5,2166.7,0.00359146]
[1773623633558,2.07897921,2167.5,2166.2,1.87183377]
[1773623633756,2.20031442,2167.3,2166.2,1.87183377]
[1773623634655,2.20031442,2167.3,2166.2,1.87657001]
[1773623635758,2.20031442,2167.3,2165.0,12.78617142]
[1773623635759,2.20031442,2167.3,2165.8,1.8964404]
[1773623635960,2.20031442,2167.1,2165.8,1.8964404]
[1773623636557,2.20031442,2167.1,2166.0,1.89926408]
[1773623636862,2.20031442,2167.1,2166.0,1.90511523]
[1773623638060,2.20031442,2167.1,2166.1,0.23079]
[1773623638264,2.20031442,2167.1,2166.2,1.91112337]
[1773623638668,2.20031442,2167.1,2166.4,1.92222292]
[1773623639262,2.20031442,2167.4,2166.4,1.92222292]
[1773623639569,2.20031442,2167.4,2166.2,1.91983829]
[1773623639867,2.20031442,2167.3,2166.0,1.92646519]
[1773623642270,2.20031442,2167.3,2166.0,0.00585115]
[1773623642471,2.20031442,2167.1,2166.0,0.00585115]
[1773623643162,2.20031442,2167.1,2165.0,0.75094343]
[1773623643163,2.20031442,2166.3,2165.1,1.93388774]
[1773623643959,2.20031442,2166.3,2165.1,7.97388774]
[1773623644161,2.20031442,2165.9,2165.1,0.00470717]
[1773623644367,2.20446294,2165.9,2165.1,1.9527716]
[1773623645266,2.20446294,2165.9,2165.1,0.00470717]
[1773623645570,2.20446294,2165.9,2165.1,2.03146217]
[1773623646773,2.20446294,2165.9,2165.1,0.00470717]
[1773623647362,2.20446294,2165.9,2165.1,2.03567323]
[1773623647566,2.20446294,2165.9,2165.1,0.00470717]
[1773623648067,2.20446294,2165.9,2165.1,2.03643017]
[1773623648967,2.20031442,2166.1,2165.1,2.26732017]
[1773623649272,2.20031442,2166.1,2165.3,2.01824402]
[1773623649467,2.20031442,2166.9,2165.3,2.01824402]
[1773623650069,2.20614053,2166.9,2165.5,2.0216885]
[1773623650264,2.20614053,2166.9,2165.7,2.0216885]
[1773623650573,2.20614053,2166.9,2165.9,2.02290757]
[1773623650775,2.20614053,2166.9,2166.1,2.02362154]
[1773623651674,2.20614053,2166.9,2166.0,1.90467469]
[1773623652272,2.20614053,2166.9,2166.2,1.83593827]
[1773623653574,2.20031442,2167.1,2166.2,1.83593827]
[1773623654074,2.20031442,2167.1,2166.2,6.04]
[1773623654274,2.20031442,2167.1,2165.9,7.8579545]
[1773623654474,2.20555123,2167.1,2166.0,1.8179545]
[1773623654676,2.20555123,2167.1,2165.8,8.08948518]
[1773623654872,2.20555123,2167.1,2165.9,1.81866518]
[1773623655268,2.20031442,2167.0,2165.6,1.84846024]
[1773623655468,2.20031442,2167.0,2165.8,1.84846024]
[1773623656377,2.20031442,2167.0,2166.0,1.86807779]
[1773623657874,2.20031442,2167.0,2166.2,1.86961307]
[1773623658075,2.20031442,2167.0,2166.3,7.90961307]
[1773623658278,2.20031442,2167.0,2166.4,1.86684045]
[1773623658779,2.20031442,2167.0,2166.2,1.8675184]
[1773623658979,2.20031442,2167.0,2166.3,6.04]
[1773623659177,2.20031442,2167.0,2166.3,7.9075184]
[1773623659378,2.20031442,2167.0,2166.4,1.86803204]
[1773623659774,2.20031442,2167.0,2166.1,6.04]
[1773623659978,2.20031442,2167.0,2166.0,7.90866688]
[1773623660176,2.20031442,2167.0,2166.1,1.86866688]
[1773623660877,2.20031442,2167.0,2166.0,1.85232174]
[1773623669287,2.20031442,2167.0,2166.2,1.85745559]
[1773623669490,0.00523681,2167.1,2166.4,1.8466234]
[1773623669984,2.04785673,2167.4,2166.6,1.84723392]
[1773623670288,2.04785673,2167.4,2166.7,1.84796379]
[1773623670989,2.05173805,2167.4,2166.7,1.85351029]
[1773623673091,0.00388132,2167.4,2166.7,1.85351029]
[1773623673985,2.05173805,2167.4,2166.8,7.88514594]
[1773623674188,2.05173805,2167.4,2166.9,1.84614594]
[1773623675086,2.04785673,2167.6,2166.9,1.84614594]
[1773623676195,2.05277862,2167.6,2166.9,1.84614594]
[1773623676793,2.05277862,2167.6,2166.8,6.039]
[1773623676984,2.05277862,2167.6,2166.7,1.90432878]
[1773623677184,2.04785673,2167.4,2166.2,1.90599249]
[1773623677488,2.04785673,2167.2,2165.9,1.90599249]
[1773623677689,2.04785673,2167.2,2166.1,1.90654258]
[1773623678093,2.04785673,2167.0,2166.2,6.039]
[1773623678283,2.04785673,2167.0,2165.5,1.93463674]
[1773623678593,2.04785673,2166.8,2165.6,1.93463674]
[1773623679494,2.04785673,2166.8,2165.6,1.93886209]
[1773623682697,2.04785673,2166.8,2165.8,1.95874068]
[1773623684396,2.04785673,2166.8,2165.6,1.96752534]
[1773623684694,2.04785673,2166.6,2165.2,1.96329999]
[1773623684898,2.04785673,2166.4,2165.2,1.96329999]
[1773623685192,2.04785673,2166.2,2165.2,1.96329999]
[1773623685599,2.04785673,2166.2,2165.2,1.96772789]
[1773623685799,2.04785673,2166.4,2165.4,1.96755458]
[1773623687294,3.85641989,2167.2,2165.6,1.97266257]
[1773623687295,2.04785673,2166.9,2165.6,1.97266257]
[1773623687499,2.04785673,2166.9,2165.7,6.04]
[1773623687701,2.04785673,2166.9,2165.8,1.97389015]
[1773623688600,2.04785673,2166.9,2165.6,1.97520724]
[1773623688801,2.04785673,2166.7,2165.6,8.01520724]
[1773623689493,2.04785673,2166.7,2165.6,1.97520724]
[1773623689698,2.04785673,2166.7,2165.6,8.01520724]
[1773623689999,2.04785673,2166.7,2165.7,1.96272064]
[1773623690198,2.04785673,2166.7,2165.6,1.96272064]
[1773623699810,2.04785673,2166.7,2165.8,1.94023726]
[1773623700508,2.1631243,2167.2,2166.4,1.93794971]
[1773623700708,2.1631243,2167.2,2166.6,1.93794971]
[1773623700909,2.1631243,2167.2,2166.4,1.93835779]
[1773623701205,2.1631243,2167.2,2165.9,1.93677087]
[1773623701409,2.1631243,2167.2,2166.0,6.04]
[1773623701610,2.1631243,2167.2,2166.0,1.93677087]
[1773623701812,2.1631243,2167.2,2166.0,7.97677087]
[1773623702015,2.1631243,2167.2,2166.1,1.93718024]
[1773623702311,2.1631243,2167.0,2165.7,1.9401942]
[1773623702614,2.1631243,2166.8,2165.7,1.9401942]
[1773623703508,2.1631243,2166.8,2165.9,1.94135816]
[1773623705203,2.1631243,2166.8,2166.1,1.97626999]
[1773623706113,2.1631243,2166.8,2166.1,8.01626999]
[1773623707111,2.1631243,2166.8,2166.2,1.97737382]
[1773623707815,2.1631243,2167.3,2166.2,1.97737382]
[1773623708014,2.1631243,2167.3,2166.4,1.97616289]
[1773623709212,2.1631243,2167.3,2166.4,8.01034844]
[1773623709516,2.1631243,2167.3,2166.5,1.97034844]
[1773623710511,2.1631243,2167.4,2166.5,1.97034844]
[1773623710716,2.1631243,2167.4,2166.3,2.20130275]
[1773623711017,2.1631243,2167.4,2166.3,8.24130275]
[1773623711218,2.1631243,2167.4,2166.4,1.97053275]
[1773623711721,2.1631243,2167.4,2166.6,1.99795083]
[1773623712112,2.1631243,2167.4,2166.8,1.99831214]
[1773623712320,2.1631243,2167.4,2166.8,2.00370315]
[1773623713319,2.1631243,2167.4,2166.8,0.00539101]
[1773623713918,2.1631243,2167.4,2166.8,2.08450616]
[1773623714919,2.16804619,2167.6,2166.8,2.08450616]
[1773623715328,2.16804619,2167.6,2166.8,0.00539101]
[1773623715624,2.16804619,2167.6,2166.6,2.08550212]
[1773623715821,2.16804619,2167.6,2166.4,8.12359278]
[1773623716421,2.1631243,2167.4,2166.5,2.08261495]
[1773623716627,2.1631243,2167.4,2166.5,2.0860237]
[1773623717328,2.1631243,2167.4,2166.5,2.3167737]
[1773623718322,4.21775414,2168.2,2166.5,2.3167737]
[1773623718323,2.1631243,2168.2,2167.3,2.08765035]
[1773623718527,2.13989032,2168.2,2167.3,8.12765035]
[1773623719022,2.13989032,2168.2,2167.4,2.08765035]
[1773623719227,2.1457386,2168.2,2167.4,2.08765035]
[1773623719630,0.00584828,2168.2,2167.4,2.08765035]
[1773623720226,0.00584828,2168.2,2167.6,2.08765035]
[1773623720431,2.1631243,2168.5,2167.6,2.08765035]
[1773623720830,2.1631243,2168.5,2167.4,8.12765035]
[1773623721030,2.1631243,2168.5,2167.6,2.08765035]
[1773623721734,2.16640263,2168.5,2167.6,2.08765035]
[1773623721930,2.16640263,2168.5,2167.5,2.08765035]
[1773623722128,2.16640263,2168.5,2167.3,2.13294865]
[1773623724533,2.18532058,2169.0,2167.5,2.12967627]
[1773623724730,2.18532058,2169.0,2167.9,2.12809349]
[1773623724932,2.18532058,2169.0,2168.1,2.12809349]
[1773623725233,2.18532058,2169.8,2168.1,2.12809349]
[1773623725636,2.18992913,2169.8,2168.1,2.13233959]
[1773623725835,2.18992913,2169.8,2168.3,2.12455136]
[1773623727132,2.18992913,2169.8,2168.5,2.13934185]
[1773623729534,2.18992913,2169.8,2168.3,2.13717644]
[1773623730238,2.18532058,2169.6,2168.1,2.13991851]
[1773623730532,0.00460855,2169.8,2168.1,2.13991851]
[1773623730533,2.18532058,2169.4,2168.1,2.13991851]
[1773623732536,2.18532058,2169.2,2168.1,0.0042461]
[1773623732744,2.18532058,2169.0,2167.6,1.98516645]
[1773623733334,2.18532058,2168.8,2167.2,0.23066]
[1773623733641,2.18532058,2168.6,2167.3,1.9911376]
[1773623733943,2.18532058,2168.4,2167.2,0.00323279]
[1773623734944,2.18532058,2168.4,2167.2,1.99111746]
[1773623736735,2.18532058,2168.4,2167.2,0.00323279]
[1773623737135,2.18532058,2168.4,2167.2,2.00862333]
[1773623738037,2.18532058,2168.4,2166.8,2.00441059]
[1773623738343,2.18532058,2168.2,2166.8,2.00441059]
[1773623738643,2.18532058,2168.1,2166.8,2.00441059]
[1773623738839,2.18532058,2167.9,2166.6,1.92007899]
[1773623739347,2.19087765,2167.9,2166.6,1.9254186]
[1773623740753,2.18532058,2167.5,2166.4,1.92450432]
[1773623740949,2.18532058,2167.1,2166.1,1.92450432]
[1773623741956,2.18532058,2167.1,2166.1,1.92823981]
[1773623742145,2.18532058,2167.7,2166.1,1.92823981]
[1773623742544,2.18532058,2167.7,2166.3,2.00745996]
[1773623743951,2.18532058,2167.5,2166.3,2.00745996]
[1773623749961,2.18532058,2167.3,2166.3,2.00745996]
[1773623750862,2.18532058,2167.3,2166.1,2.14307734]
[1773623751064,2.18532058,2167.1,2166.1,2.14307734]
[1773623753864,2.18532058,2167.1,2166.1,2.37386734]
[1773623756557,2.00610475,2167.6,2166.1,2.37386734]
[1773623757161,2.00610475,2167.6,2166.6,2.02318846]
[1773623759360,2.00610475,2167.6,2166.2,2.02318846]
[1773623760867,2.00610475,2167.5,2166.4,2.02318846]
[1773623763068,2.00610475,2167.5,2166.6,2.02318846]
[1773623766571,0.00555707,2167.9,2166.6,2.02318846]
[1773623766763,2.00610475,2167.8,2166.6,2.02318846]
[1773623767172,2.00610475,2167.6,2166.8,2.02318846]
[1773623769277,2.00610475,2167.6,2166.7,2.25391846]
[1773623771576,2.00610475,2167.6,2166.7,2.02318846]
[1773623773579,2.00610475,2167.6,2166.2,2.02318846]
[1773623773779,5.67159575,2167.5,2166.2,2.02318846]
[1773623773979,2.00610475,2167.4,2166.2,2.02318846]
[1773623778174,2.00610475,2167.4,2166.4,1.96158837]
[1773623778477,2.00610475,2167.4,2166.6,1.96369299]
[1773623778682,2.00610475,2167.8,2167.0,1.96369299]
[1773623779377,0.00555707,2167.9,2167.0,1.96369299]
[1773623779681,2.01166182,2167.9,2167.0,1.96369299]
[1773623783289,0.00555707,2167.9,2167.2,1.85054789]
[1773623784283,2.05099025,2168.2,2167.2,1.85054789]
[1773623785280,2.05542476,2168.2,2167.3,0.23066]
[1773623785588,0.00443451,2168.2,2167.6,1.84761191]
[1773623787087,2.05099025,2168.9,2167.6,1.84761191]
[1773623787280,2.05099025,2168.7,2167.6,1.84761191]
[1773623788087,2.05572375,2168.7,2167.6,1.84761191]
[1773623792191,2.05572375,2168.7,2167.8,1.83051529]
[1773623792394,2.05572375,2168.7,2167.8,1.83391135]
[1773623795096,2.05572375,2168.7,2167.4,1.80547917]
[1773623796396,2.05572375,2168.7,2167.4,1.80972764]
[1773623798496,2.05572375,2168.7,2167.8,1.8071727]
[1773623799099,2.05572375,2168.7,2168.0,1.80617901]
[1773623799294,10.08187186,2169.5,2168.0,1.80617901]
[1773623799500,2.05099025,2169.2,2168.0,1.80617901]
[1773623799701,2.05099025,2169.2,2168.2,1.80353054]
[1773623800400,2.05523012,2169.2,2168.2,1.80353054]
[1773623800997,2.05523012,2169.2,2168.1,2.02814496]
[1773623801800,2.05523012,2169.2,2167.7,6.041]
[1773623802105,2.05523012,2169.2,2167.8,1.80701062]
[1773623803508,2.05099025,2169.0,2167.8,1.80701062]
[1773623807304,0.00423987,2169.2,2168.2,1.80170728]
[1773623807510,2.05523012,2169.2,2168.4,1.80170728]
[1773623807704,0.00423987,2169.2,2168.6,1.80083019]
[1773623808003,3.82187186,2170.1,2168.8,1.80083019]
[1773623808204,7.70721195,2170.0,2168.8,1.80083019]
[1773623808505,7.70721195,2170.0,2168.7,0.23051]
[1773623808506,2.05099025,2169.9,2169.2,1.79962422]
[1773623808710,2.05099025,2170.5,2169.2,1.79962422]
[1773623809008,2.05099025,2170.3,2169.2,1.80386008]
[1773623809208,2.05099025,2170.3,2169.4,1.79874674]
[1773623810604,2.05099025,2170.3,2169.3,0.23045]
[1773623810810,2.05099025,2170.3,2169.2,1.82643059]
[1773623812510,2.05099025,2170.3,2169.2,0.00423586]
[1773623813810,2.05099025,2170.3,2169.2,1.83695082]
[1773623816010,2.05099025,2170.3,2169.2,0.00423586]
[1773623816311,2.08557535,2170.1,2169.2,0.00423586]
[1773623816613,2.08557535,2170.1,2168.7,0.23051]
[1773623816810,2.08557535,2170.1,2168.7,2.1370483]
[1773623817508,2.08557535,2170.1,2168.7,2.14042426]
[1773623817904,2.08557535,2170.1,2169.3,1.90745201]
[1773623818705,2.08557535,2170.1,2168.8,2.00663847]
[1773623822708,2.08557535,2169.9,2168.3,2.02053636]
[1773623822906,2.08557535,2169.7,2168.3,2.02053636]
[1773623823805,2.08557535,2169.7,2168.3,2.0262713]